bitfinex-derivatives/quotes_ETHF0:USTF0_20260117
["timestamp","ask_amount","ask_price","bid_price","bid_amount"]
[1768674330790,0.38022249,3322.8,3321.4,0.35308259]
[1768674330997,1.02730799,3322.7,3321.4,0.35308259]
[1768674331194,1.02730799,3322.6,3321.4,0.35308259]
[1768674331395,1.02730799,3322.5,3321.4,0.35308259]
[1768674331596,1.02738027,3322.4,3321.4,0.35308259]
[1768674331800,0.38022249,3322.8,3321.4,0.35308259]
[1768674331991,1.02737533,3322.7,3321.4,0.35308259]
[1768674332187,1.02737533,3322.6,3321.4,0.35308259]
[1768674332391,1.02737533,3322.5,3321.4,0.35308259]
[1768674332594,1.02737533,3322.4,3321.4,0.35308259]
[1768674332791,0.38022249,3322.8,3321.4,0.35308259]
[1768674332993,1.02740588,3322.7,3321.4,0.35308259]
[1768674333191,1.02740588,3322.6,3321.4,0.35308259]
[1768674333391,1.02740588,3322.5,3321.4,0.35308259]
[1768674333594,1.02740588,3322.4,3321.4,0.35308259]
[1768674333796,0.38022249,3322.8,3321.4,0.35308259]
[1768674333996,1.02743381,3322.7,3321.4,0.35308259]
[1768674334201,1.02743381,3322.6,3321.4,0.35308259]
[1768674334396,1.02743381,3322.5,3321.4,0.35308259]
[1768674334592,1.02743381,3322.4,3321.4,0.35308259]
[1768674334793,0.38022249,3322.8,3321.4,0.35308259]
[1768674334992,1.02746592,3322.7,3321.4,0.35308259]
[1768674335194,1.02746592,3322.6,3321.4,0.35308259]
[1768674335403,1.02746592,3322.5,3321.4,0.35308259]
[1768674335597,1.02746592,3322.4,3321.1,0.96985028]
[1768674335891,1.02746592,3322.3,3321.1,0.96985028]
[1768674336094,0.38022249,3322.8,3321.1,0.96985028]
[1768674336295,1.02763095,3322.7,3321.1,0.96985028]
[1768674336495,1.02763095,3322.6,3321.1,0.96985028]
[1768674336700,1.40010872,3322.5,3321.1,0.96985028]
[1768674337006,1.40010872,3322.4,3321.1,0.96985028]
[1768674337207,1.02763095,3322.3,3321.1,0.96985028]
[1768674337407,0.37247777,3322.4,3321.1,0.96985028]
[1768674337609,1.02763016,3322.3,3321.1,0.96985028]
[1768674337908,0.37247777,3322.4,3321.1,0.96985028]
[1768674338112,1.02763041,3322.3,3321.1,0.96985028]
[1768674338405,0.37247777,3322.4,3321.1,0.00239318]
[1768674338600,1.02762268,3322.3,3321.1,0.00239318]
[1768674338808,0.37247777,3322.4,3321.1,0.00239318]
[1768674339001,1.02762276,3322.3,3321.1,0.00239318]
[1768674339210,0.37247777,3322.4,3321.1,0.00239318]
[1768674339406,1.02761544,3322.3,3321.1,0.00239318]
[1768674339606,0.37247777,3322.4,3321.1,0.00239318]
[1768674339807,1.02761549,3322.3,3321.1,0.00239318]
[1768674340106,0.37247777,3322.4,3321.1,0.00239318]
[1768674340309,1.02760775,3322.3,3321.1,0.00239318]
[1768674340506,0.37247777,3322.4,3321.1,0.00239318]
[1768674340709,1.0276076,3322.3,3321.1,0.00239318]
[1768674341007,0.37247777,3322.4,3321.1,0.00239318]
[1768674341308,1.02760769,3322.3,3321.1,0.00239318]
[1768674341492,0.37247777,3322.4,3321.1,0.00239318]
[1768674341693,1.02760399,3322.3,3321.1,0.00239318]
[1768674341897,0.37247777,3322.4,3321.1,0.00239318]
[1768674342107,1.02760397,3322.3,3321.1,0.00239318]
[1768674342406,0.37247777,3322.4,3321.1,0.00239318]
[1768674342609,1.02759303,3322.3,3321.1,0.00239318]
[1768674342818,0.37247777,3322.4,3321.1,0.00239318]
[1768674342998,1.02759312,3322.3,3321.1,0.00239318]
[1768674343201,0.37247777,3322.4,3321.1,0.00239318]
[1768674343505,1.40006844,3322.3,3321.1,0.00239318]
[1768674343808,1.0275943,3322.2,3321.1,0.00239318]
[1768674344009,0.37247777,3322.3,3321.1,0.00239318]
[1768674344306,1.02759206,3322.2,3321.1,0.00239318]
[1768674344508,0.37247777,3322.3,3321.1,0.00239318]
[1768674344709,1.02745488,3322.2,3321.1,0.00239318]
[1768674344903,0.37247777,3322.3,3321.1,0.00239318]
[1768674345109,0.37247777,3322.1,3321.1,0.00239318]
[1768674347508,1.34041985,3322.0,3321.1,0.00239318]
[1768674349711,0.37247777,3322.0,3321.1,0.00239318]
[1768674361522,0.15054,3322.5,3321.1,0.00239318]
[1768674361523,0.37551843,3321.8,3321.1,0.00239318]
[1768674361721,0.37551843,3321.8,3320.5,3.007]
[1768674362621,0.37551843,3321.8,3320.5,3.00933576]
[1768674363326,0.37551843,3321.8,3320.5,3.97727784]
[1768674367125,0.37551843,3321.8,3320.7,0.96794208]
[1768674370326,0.37551843,3321.8,3320.5,3.01833576]
[1768674370530,0.37551843,3321.8,3320.7,0.96794208]
[1768674385738,0.37551843,3321.8,3320.5,0.97027784]
[1768674385936,1.03164998,3321.7,3320.5,0.97027784]
[1768674386133,0.37551843,3321.8,3320.7,0.96794208]
[1768674386337,1.03170521,3321.7,3320.7,0.96794208]
[1768674386542,0.37551843,3321.8,3320.7,0.96794208]
[1768674386742,1.03170513,3321.7,3320.7,0.96794208]
[1768674386936,0.37551843,3321.8,3320.7,0.96794208]
[1768674387137,1.03170453,3321.7,3320.7,0.96794208]
[1768674387337,0.37551843,3321.8,3320.7,0.96794208]
[1768674387543,1.03177563,3321.7,3320.5,0.00233576]
[1768674387744,0.37551843,3321.8,3320.6,0.96794208]
[1768674387948,1.03177567,3321.7,3320.6,0.96794208]
[1768674388139,0.37551843,3321.8,3320.6,0.96794208]
[1768674388340,1.03186936,3321.7,3320.6,0.96794208]
[1768674388534,0.37551843,3321.8,3320.6,0.96794208]
[1768674388735,1.03186942,3321.7,3320.6,0.96794208]
[1768674388937,0.37551843,3321.8,3320.6,0.96794208]
[1768674389142,1.03186925,3321.7,3320.6,0.96794208]
[1768674389446,0.37551843,3321.8,3320.6,0.96794208]
[1768674389638,1.03199245,3321.7,3320.6,0.96794208]
[1768674389840,0.37551843,3321.8,3320.6,0.96794208]
[1768674390039,1.03199266,3321.7,3320.6,0.96794208]
[1768674390338,0.37551843,3321.8,3320.6,0.96794208]
[1768674390538,1.03199415,3321.7,3320.6,0.96794208]
[1768674390738,0.37551843,3321.8,3320.6,0.96794208]
[1768674390940,1.03199415,3321.7,3320.6,0.96794208]
[1768674391147,0.37551843,3321.8,3320.6,0.96794208]
[1768674391348,1.03216596,3321.7,3320.6,0.96794208]
[1768674391547,1.03216599,3321.6,3320.6,0.96794208]
[1768674391749,0.37551843,3321.8,3320.6,0.96794208]
[1768674391948,1.03216621,3321.7,3320.6,0.96794208]
[1768674392148,0.37551843,3321.8,3320.5,0.00233576]
[1768674392149,1.03216621,3321.6,3320.5,0.00233576]
[1768674392348,0.37551843,3321.8,3320.5,0.97027784]
[1768674392549,1.03218923,3321.7,3320.5,0.97027784]
[1768674392741,1.03218923,3321.6,3320.5,0.00233576]
[1768674392942,0.37551843,3321.8,3320.5,0.97027784]
[1768674393149,1.03218928,3321.7,3320.5,0.97027784]
[1768674393353,1.03218928,3321.6,3320.5,0.97027784]
[1768674393653,0.37551843,3321.8,3320.5,0.97027784]
[1768674393952,1.0322203,3321.7,3320.5,0.97027784]
[1768674394145,1.0322203,3321.6,3320.5,0.97027784]
[1768674394339,0.37551843,3321.8,3320.5,0.97027784]
[1768674394544,1.03225935,3321.7,3320.5,0.97027784]
[1768674394744,1.03225935,3321.6,3320.5,0.97027784]
[1768674394945,0.37551843,3321.8,3320.5,0.97027784]
[1768674395252,1.03225964,3321.7,3320.5,0.97027784]
[1768674395458,0.37551843,3321.8,3320.5,0.97027784]
[1768674396758,0.37551843,3321.8,3320.5,0.00233576]
[1768674396943,1.03235435,3321.7,3320.5,0.00233576]
[1768674397148,0.37551843,3321.8,3320.5,0.00233576]
[1768674397656,1.03230202,3321.7,3320.5,0.00233576]
[1768674397957,0.37551843,3321.8,3320.5,0.00233576]
[1768674398548,0.96794208,3321.7,3320.5,0.00233576]
[1768674405059,0.96794208,3321.7,3320.5,0.97027784]
[1768674407362,0.37551843,3321.8,3320.5,0.00233576]
[1768674415571,1.39729704,3321.7,3320.5,0.00233576]
[1768674415774,0.36573909,3321.7,3320.5,0.00233576]
[1768674425389,1.03215915,3321.6,3320.5,0.00233576]
[1768674425595,0.36573909,3321.7,3320.5,0.00233576]
[1768674425894,0.51628909,3322.3,3320.6,1.33239529]
[1768674426100,1.03215801,3322.2,3320.6,1.33239529]
[1768674426305,1.03215801,3322.1,3320.6,1.33239529]
[1768674426598,1.03215801,3322.0,3320.6,1.33239529]
[1768674426899,1.03215801,3321.9,3320.6,1.33239529]
[1768674427099,1.03215801,3321.8,3320.6,1.33239529]
[1768674427293,0.36573909,3322.2,3320.6,1.33239529]
[1768674427491,1.03216317,3322.1,3320.6,1.33239529]
[1768674427701,1.03216317,3322.0,3320.6,1.33239529]
[1768674427907,1.03216317,3321.9,3320.6,1.33239529]
[1768674428200,1.03216317,3321.8,3320.6,1.33239529]
[1768674428402,0.36573909,3322.2,3320.6,1.33239529]
[1768674428702,1.03214542,3322.1,3320.6,1.33239529]
[1768674428902,1.03214542,3322.0,3320.6,1.33239529]
[1768674429103,1.03214542,3321.9,3320.6,1.33239529]
[1768674429293,1.03214542,3321.8,3320.6,1.33239529]
[1768674429594,0.36573909,3322.2,3320.6,1.33239529]
[1768674429794,1.03214739,3322.1,3320.6,1.33239529]
[1768674429995,1.03214739,3322.0,3320.6,1.33239529]
[1768674430295,1.03214739,3321.9,3320.6,1.33239529]
[1768674430497,1.03214739,3321.8,3320.6,1.33239529]
[1768674430694,0.36573909,3322.2,3320.6,1.33239529]
[1768674431003,1.03213462,3322.1,3320.6,1.33239529]
[1768674431201,0.36573909,3322.2,3320.6,1.33239529]
[1768674431202,1.03213462,3322.0,3320.6,1.33239529]
[1768674431502,1.03213462,3321.9,3320.6,1.33239529]
[1768674431698,1.03213462,3321.8,3320.6,1.33239529]
[1768674431899,0.36573909,3322.2,3320.6,1.33239529]
[1768674432204,1.03212084,3322.1,3320.6,1.33239529]
[1768674432403,1.03212084,3322.0,3320.6,1.33239529]
[1768674432603,1.03212084,3321.9,3320.6,1.33239529]
[1768674432808,0.36573909,3322.2,3320.6,0.36435395]
[1768674432809,1.03212084,3321.8,3320.6,0.36435395]
[1768674433107,0.36573909,3322.1,3320.6,0.36435395]
[1768674433300,1.03234235,3322.0,3320.6,0.36435395]
[1768674433500,1.03234235,3321.9,3320.6,0.36435395]
[1768674433704,1.03234235,3321.8,3320.6,0.36435395]
[1768674433901,0.36573909,3322.1,3320.6,0.36435395]
[1768674434103,1.03233912,3322.0,3320.6,0.36435395]
[1768674434302,1.03233912,3321.9,3320.6,0.36435395]
[1768674434507,1.03233912,3321.8,3320.6,0.36435395]
[1768674434698,1.03233912,3321.7,3320.6,0.36435395]
[1768674434904,0.36573909,3322.1,3320.6,0.36435395]
[1768674435104,1.03233897,3322.0,3320.6,0.36435395]
[1768674435405,1.03233897,3321.9,3320.6,0.36435395]
[1768674435606,1.03233897,3321.8,3320.6,0.36435395]
[1768674435807,0.36573909,3322.1,3320.6,0.36435395]
[1768674436104,1.03236409,3322.0,3320.6,0.36435395]
[1768674437710,1.39810318,3322.0,3320.6,0.36435395]
[1768674437911,1.03236409,3321.9,3320.6,0.36435395]
[1768674454017,1.34142615,3321.9,3320.5,0.00233576]
[1768674454221,1.03236409,3321.8,3320.5,0.00233576]
[1768674461419,0.30906206,3321.9,3320.5,0.00233576]
[1768674461628,1.0340108,3321.8,3320.5,0.00233576]
[1768674461816,1.0340108,3321.7,3320.5,0.00233576]
[1768674462122,0.30906206,3321.9,3320.5,0.00233576]
[1768674462324,1.03403498,3321.8,3320.5,0.00233576]
[1768674462522,1.03403498,3321.7,3320.5,0.00233576]
[1768674462715,0.30906206,3321.9,3320.5,0.00233576]
[1768674462918,1.03403503,3321.8,3320.5,0.00233576]
[1768674463119,1.03403503,3321.7,3320.5,0.00233576]
[1768674463319,0.30906206,3321.9,3320.5,0.00233576]
[1768674463524,1.03405847,3321.8,3320.5,0.00233576]
[1768674463720,1.03405847,3321.7,3320.5,0.00233576]
[1768674463921,0.30906206,3321.9,3320.5,0.00233576]
[1768674464223,1.03406068,3321.8,3320.5,0.00233576]
[1768674464423,1.03406068,3321.7,3320.5,0.00233576]
[1768674464623,0.30906206,3321.9,3320.5,0.00233576]
[1768674464825,1.0340832,3321.8,3320.5,0.00233576]
[1768674465122,1.0340832,3321.7,3320.5,0.00233576]
[1768674465323,0.30906206,3321.9,3320.5,0.00233576]
[1768674465524,1.03408205,3321.8,3320.5,0.00233576]
[1768674465823,1.03408205,3321.7,3320.5,0.00233576]
[1768674466122,0.30906206,3321.9,3320.5,0.00233576]
[1768674466310,1.03408322,3321.8,3320.5,0.00233576]
[1768674466509,1.03408322,3321.7,3320.5,0.00233576]
[1768674466708,0.30906206,3321.9,3320.5,0.00233576]
[1768674467023,1.03408328,3321.8,3320.5,0.00233576]
[1768674467223,1.03408328,3321.7,3320.5,0.00233576]
[1768674467428,0.30906206,3321.9,3320.5,0.00233576]
[1768674467726,1.03408258,3321.8,3320.5,0.00233576]
[1768674467927,1.03408258,3321.7,3320.5,0.00233576]
[1768674468127,0.30906206,3321.9,3320.5,0.00233576]
[1768674468428,1.03409667,3321.8,3320.5,0.00233576]
[1768674468626,1.03409667,3321.7,3320.5,0.00233576]
[1768674468827,0.30906206,3321.9,3320.5,0.00233576]
[1768674469030,1.03364263,3321.8,3320.5,0.00233576]
[1768674469227,0.03841749,3322.3,3321.0,1.27464748]
[1768674469431,0.30906206,3322.5,3321.0,1.27464748]
[1768674469432,0.30906206,3322.5,3321.6,0.96733722]
[1768674469629,0.30906206,3322.5,3321.3,0.96733722]
[1768674481239,1.02606847,3322.4,3321.3,0.96733722]
[1768674481536,1.02606847,3322.3,3321.3,0.96733722]
[1768674481746,1.02606847,3322.2,3321.3,0.96733722]
[1768674481932,0.30906206,3322.5,3321.3,0.96733722]
[1768674482125,1.02606864,3322.4,3321.3,0.96733722]
[1768674482333,1.02606864,3322.3,3321.3,0.96733722]
[1768674482535,1.02606864,3322.2,3321.3,0.96733722]
[1768674482733,0.30906206,3322.5,3321.3,0.96733722]
[1768674483033,1.02603736,3322.4,3321.3,0.96733722]
[1768674483234,1.02603736,3322.3,3321.3,0.96733722]
[1768674483434,1.02603736,3322.2,3320.9,3.067]
[1768674483636,0.30906206,3322.5,3321.1,0.96733722]
[1768674483936,1.02601456,3322.4,3321.1,0.96733722]
[1768674484137,1.02601456,3322.3,3321.1,0.96733722]
[1768674484438,1.02601456,3322.2,3321.1,0.96733722]
[1768674484638,0.30906206,3322.5,3321.1,0.96733722]
[1768674484941,1.02600555,3322.4,3321.1,0.96733722]
[1768674485141,1.02600555,3322.3,3321.1,0.96733722]
[1768674485341,1.02600555,3322.2,3321.1,0.96733722]
[1768674485527,0.30906206,3322.5,3321.1,0.96733722]
[1768674485732,1.02600844,3322.4,3321.1,0.96733722]
[1768674485941,0.30906206,3322.5,3321.1,0.96733722]
[1768674486143,1.02600626,3322.4,3321.1,0.96733722]
[1768674486441,0.30906206,3322.5,3321.1,0.96733722]
[1768674486638,1.02601879,3322.4,3321.1,0.96733722]
[1768674486841,0.30906206,3322.5,3321.1,0.96733722]
[1768674487043,1.02601884,3322.4,3321.1,0.96733722]
[1768674487343,0.30906206,3322.5,3321.1,0.96733722]
[1768674487537,1.02604204,3322.4,3321.1,0.96733722]
[1768674487739,0.30906206,3322.5,3321.1,0.96733722]
[1768674487938,1.02604204,3322.4,3321.1,0.96733722]
[1768674488238,0.30906206,3322.5,3321.1,0.96733722]
[1768674488429,1.02607655,3322.4,3320.8,0.55327925]
[1768674488633,0.96733722,3322.0,3320.8,0.55327925]
[1768674489341,0.96733722,3321.6,3320.8,0.55327925]
[1768674489640,0.96733722,3321.6,3320.2,0.96733722]
[1768674489846,0.96733722,3321.6,3320.1,41.11495458]
[1768674489847,0.96733722,3321.6,3320.4,0.96733722]
[1768674490345,1.28893255,3321.8,3320.4,0.96733722]
[1768674491638,0.32159533,3321.8,3320.4,0.96733722]
[1768674491948,0.32159533,3321.8,3320.6,0.96733722]
[1768674499350,0.32159533,3321.8,3320.4,0.96733722]
[1768674499552,0.32159533,3321.8,3319.5,3.014]
[1768674499553,0.96733722,3321.4,3319.6,0.31495458]
[1768674499745,0.96733722,3321.4,3319.9,0.96733722]
[1768674500255,0.32159533,3321.5,3319.9,0.96733722]
[1768674500448,0.32159533,3321.5,3320.2,0.96733722]
[1768674500648,0.32159533,3321.5,3320.2,0.97081009]
[1768674517183,1.0207959,3321.4,3320.2,0.97081009]
[1768674517384,0.32159533,3321.5,3320.2,0.97081009]
[1768674517587,1.0207959,3321.4,3320.2,0.97081009]
[1768674517882,0.32159533,3321.5,3320.2,0.97081009]
[1768674518092,1.02081408,3321.4,3320.2,0.97081009]
[1768674518273,0.32159533,3321.5,3320.2,0.97081009]
[1768674518470,1.02105112,3321.4,3320.2,0.97081009]
[1768674518675,0.32159533,3321.5,3320.2,0.97081009]
[1768674518969,1.02105112,3321.4,3320.2,0.97081009]
[1768674519171,0.32159533,3321.5,3320.2,0.97081009]
[1768674519384,1.02119864,3321.4,3320.2,0.97081009]
[1768674519584,0.32159533,3321.5,3320.2,0.97081009]
[1768674519787,1.02119864,3321.4,3320.2,0.97081009]
[1768674519974,0.32159533,3321.5,3320.2,0.97081009]
[1768674520177,1.021198,3321.4,3320.2,0.97081009]
[1768674520376,0.32159533,3321.5,3320.2,0.97081009]
[1768674520676,1.02126109,3321.4,3320.2,0.97081009]
[1768674520875,0.32159533,3321.5,3320.2,0.97081009]
[1768674521075,1.02126103,3321.4,3320.2,0.97081009]
[1768674521271,0.32159533,3321.5,3320.2,0.97081009]
[1768674521482,1.02133757,3321.4,3320.2,0.97081009]
[1768674521683,0.32159533,3321.5,3320.2,0.97081009]
[1768674521882,1.02133757,3321.4,3320.2,0.97081009]
[1768674522082,0.32159533,3321.5,3320.2,0.97081009]
[1768674522278,1.02143138,3321.4,3320.2,0.97081009]
[1768674522479,0.32159533,3321.5,3320.2,0.97081009]
[1768674522781,1.02143138,3321.4,3320.2,0.97081009]
[1768674523086,0.32159533,3321.5,3320.2,0.97081009]
[1768674523281,1.02143138,3321.4,3320.2,0.97081009]
[1768674523482,0.32159533,3321.5,3320.2,0.97081009]
[1768674523683,1.02154114,3321.4,3320.2,0.97081009]
[1768674523884,0.32159533,3321.5,3320.2,0.97081009]
[1768674524085,1.02154136,3321.4,3320.2,0.97081009]
[1768674524284,0.32159533,3321.5,3320.2,0.97081009]
[1768674524485,1.02167239,3321.4,3320.2,0.97081009]
[1768674524685,0.32159533,3321.5,3320.2,0.97081009]
[1768674524885,1.02167228,3321.4,3320.2,0.97081009]
[1768674525087,0.32159533,3321.5,3320.2,0.97081009]
[1768674525388,1.02167239,3321.4,3320.2,0.97081009]
[1768674525588,0.32159533,3321.5,3320.2,0.97081009]
[1768674527195,1.02225795,3321.4,3320.2,0.97081009]
[1768674527489,0.32159533,3321.5,3320.2,0.97081009]
[1768674527791,1.02225801,3321.4,3320.2,0.97081009]
[1768674527997,0.32159533,3321.5,3320.2,0.97081009]
[1768674528177,1.0222561,3321.4,3320.2,0.97081009]
[1768674528377,0.32159533,3321.5,3320.2,0.97081009]
[1768674528580,1.02258986,3321.4,3320.2,0.97081009]
[1768674528781,0.32159533,3321.5,3320.2,0.97081009]
[1768674528987,1.02258986,3321.4,3320.2,0.97081009]
[1768674529196,1.02258986,3321.3,3320.2,0.97081009]
[1768674529384,0.32159533,3321.5,3320.2,0.97081009]
[1768674529585,1.02327011,3321.4,3320.2,0.97081009]
[1768674529785,1.02327011,3321.3,3320.2,0.97081009]
[1768674529986,0.32159533,3321.5,3320.2,0.97081009]
[1768674530298,1.02327185,3321.4,3320.2,0.97081009]
[1768674530506,1.02327185,3321.3,3320.2,0.97081009]
[1768674530795,0.32159533,3321.5,3320.2,0.97081009]
[1768674530999,1.02327123,3321.4,3320.2,0.97081009]
[1768674531188,1.02327123,3321.3,3320.2,0.97081009]
[1768674531488,0.32159533,3321.5,3320.2,0.00347287]
[1768674531686,1.0232727,3321.4,3320.2,0.00347287]
[1768674531888,1.0232727,3321.3,3320.2,0.00347287]
[1768674532187,0.32159533,3321.5,3320.2,0.00347287]
[1768674532387,1.02327509,3321.4,3320.2,0.00347287]
[1768674532588,1.02327509,3321.3,3320.2,0.00347287]
[1768674532887,0.32159533,3321.5,3320.2,0.00347287]
[1768674533090,1.02327509,3321.4,3320.2,0.00347287]
[1768674533290,1.02327509,3321.3,3320.2,0.00347287]
[1768674533491,0.32159533,3321.5,3320.2,0.00347287]
[1768674533693,1.02327683,3321.4,3320.2,0.00347287]
[1768674533895,1.02327683,3321.3,3320.2,0.00347287]
[1768674534193,0.32159533,3321.5,3320.2,0.00347287]
[1768674534394,1.02327916,3321.4,3320.2,0.00347287]
[1768674534593,1.02327916,3321.3,3320.2,0.00347287]
[1768674534799,0.32159533,3321.5,3320.2,0.00347287]
[1768674534998,1.02327916,3321.4,3320.2,0.00347287]
[1768674535198,1.02327916,3321.3,3320.2,0.00347287]
[1768674535399,0.32159533,3321.5,3320.2,0.00347287]
[1768674535698,1.02328358,3321.4,3320.2,0.00347287]
[1768674535894,1.02328358,3321.3,3320.2,0.00347287]
[1768674536096,0.32159533,3321.5,3320.2,0.00347287]
[1768674536296,1.02328786,3321.4,3320.2,0.00347287]
[1768674536499,1.02328786,3321.3,3320.2,0.00347287]
[1768674536796,0.15057,3321.8,3320.2,0.00347287]
[1768674536998,1.02328706,3321.7,3320.2,0.00347287]
[1768674537195,1.02328706,3321.6,3320.2,0.00347287]
[1768674537397,0.15057,3321.8,3320.2,0.00347287]
[1768674537398,1.02328706,3321.5,3320.2,0.00347287]
[1768674537592,1.02328706,3321.4,3320.2,0.00347287]
[1768674537793,1.02328706,3321.3,3320.2,0.00347287]
[1768674537990,0.28341113,3321.7,3320.2,0.00347287]
[1768674538196,1.02329371,3321.6,3320.2,0.00347287]
[1768674538392,1.02329371,3321.5,3320.2,0.00347287]
[1768674538592,1.02329371,3321.4,3320.2,0.00347287]
[1768674538802,1.02329371,3321.3,3320.2,0.00347287]
[1768674539003,0.28341113,3321.7,3320.2,0.00347287]
[1768674539204,1.0220298,3321.6,3320.2,0.00347287]
[1768674539404,1.0220298,3321.5,3320.2,0.00347287]
[1768674539602,1.02203472,3321.4,3320.2,0.00347287]
[1768674539803,1.02203472,3321.3,3320.2,0.00347287]
[1768674539991,0.28341113,3321.7,3320.2,0.00347287]
[1768674540196,1.02203579,3321.6,3320.2,0.00347287]
[1768674540393,1.02203579,3321.5,3320.2,0.00347287]
[1768674540597,1.02203579,3321.4,3320.2,0.00347287]
[1768674540802,1.02203579,3321.3,3320.2,0.00347287]
[1768674541097,0.28341113,3321.7,3320.2,0.00347287]
[1768674541395,1.02204684,3321.6,3320.2,0.00347287]
[1768674541594,1.02204684,3321.5,3320.2,0.00347287]
[1768674541795,1.02204684,3321.4,3320.2,0.00347287]
[1768674542006,1.02204684,3321.3,3320.2,0.00347287]
[1768674542205,0.28341113,3321.7,3320.2,0.00347287]
[1768674542507,1.02205641,3321.6,3320.2,0.00347287]
[1768674542694,1.02205641,3321.5,3320.2,0.00347287]
[1768674542996,1.02205641,3321.4,3320.2,0.00347287]
[1768674543196,1.02205641,3321.3,3320.2,0.00347287]
[1768674543397,0.28341113,3321.7,3320.2,0.00347287]
[1768674543600,1.02206926,3321.6,3320.2,0.00347287]
[1768674543800,1.02206926,3321.5,3320.2,0.00347287]
[1768674544012,1.02206926,3321.4,3320.2,0.00347287]
[1768674544208,1.02206926,3321.3,3320.2,0.00347287]
[1768674544407,0.28341113,3321.7,3320.2,0.00347287]
[1768674544609,1.0220927,3321.6,3320.2,0.00347287]
[1768674544808,1.0220927,3321.5,3320.2,0.00347287]
[1768674545010,1.0220927,3321.4,3320.2,0.00347287]
[1768674545211,1.0220927,3321.3,3320.2,0.00347287]
[1768674545404,0.28341113,3321.6,3320.2,0.00347287]
[1768674545605,1.0220923,3321.5,3320.2,0.00347287]
[1768674545807,1.0220923,3321.4,3320.2,0.00347287]
[1768674546008,1.0220923,3321.3,3320.2,0.00347287]
[1768674546207,0.28341113,3321.6,3320.2,0.00347287]
[1768674546410,1.02209194,3321.5,3320.2,0.00347287]
[1768674546613,1.02209194,3321.4,3320.2,0.00347287]
[1768674546813,1.02209194,3321.3,3320.2,0.00347287]
[1768674547015,0.28341113,3321.6,3320.2,0.00347287]
[1768674547215,1.02209171,3321.5,3320.2,0.00347287]
[1768674547416,1.02209171,3321.4,3320.2,0.00347287]
[1768674547616,1.02209171,3321.3,3320.2,0.00347287]
[1768674547916,0.28341113,3321.6,3320.2,0.00347287]
[1768674548116,1.02209002,3321.5,3320.2,0.00347287]
[1768674548304,1.02209002,3321.4,3320.2,0.00347287]
[1768674548508,1.02209002,3321.3,3320.2,0.00347287]
[1768674548802,0.28341113,3321.6,3320.2,0.00347287]
[1768674549005,1.02209086,3321.5,3320.2,0.00347287]
[1768674549202,1.02209086,3321.4,3320.2,0.00347287]
[1768674549412,1.02209086,3321.3,3320.2,0.00347287]
[1768674549612,0.28341113,3321.6,3320.2,0.00347287]
[1768674549813,1.02209085,3321.5,3320.2,0.00347287]
[1768674550008,1.02209085,3321.4,3320.2,0.00347287]
[1768674550208,1.02209085,3321.3,3320.2,0.00347287]
[1768674550408,0.28341113,3321.6,3320.2,0.00347287]
[1768674550613,1.02209092,3321.5,3320.2,0.00347287]
[1768674550910,1.02209092,3321.4,3320.2,0.00347287]
[1768674551110,1.02209092,3321.3,3320.2,0.00347287]
[1768674551312,0.28341113,3321.6,3320.2,0.00347287]
[1768674551512,1.02209039,3321.5,3320.2,0.00347287]
[1768674551714,1.02209039,3321.4,3320.2,0.00347287]
[1768674551910,1.02209039,3321.3,3320.2,0.00347287]
[1768674552117,0.28341113,3321.6,3320.2,0.00347287]
[1768674552314,1.02209168,3321.5,3320.2,0.00347287]
[1768674552616,1.02209168,3321.4,3320.2,0.00347287]
[1768674552814,1.02209168,3321.3,3320.2,0.00347287]
[1768674553022,0.28341113,3321.6,3320.2,0.00347287]
[1768674553317,1.02209172,3321.5,3320.2,0.00347287]
[1768674553617,1.02209172,3321.4,3320.2,0.00347287]
[1768674553812,1.02209172,3321.3,3320.2,0.00347287]
[1768674554113,0.28341113,3321.6,3320.2,0.00347287]
[1768674554312,1.02209236,3321.5,3320.2,0.00347287]
[1768674554614,1.02209236,3321.4,3320.2,0.00347287]
[1768674554814,1.02209236,3321.3,3320.2,0.00347287]
[1768674555014,0.28341113,3321.6,3320.2,0.00347287]
[1768674555320,1.3055036,3321.5,3320.2,0.00347287]
[1768674555619,1.02209247,3321.4,3320.2,0.00347287]
[1768674560021,1.3055036,3321.4,3320.2,0.00347287]
[1768674560320,0.28341113,3321.4,3320.2,0.00347287]
[1768674565422,1.01248295,3321.3,3320.2,0.00347287]
[1768674565629,0.28341113,3321.4,3320.2,0.00347287]
[1768674565926,1.01248303,3321.3,3320.2,0.00347287]
[1768674566126,0.28341113,3321.4,3320.2,0.00347287]
[1768674566328,1.01248371,3321.3,3320.2,0.00347287]
[1768674566513,0.28341113,3321.4,3320.2,0.00347287]
[1768674566718,1.01248271,3321.3,3320.2,0.00347287]
[1768674566932,0.28341113,3321.4,3320.2,0.00347287]
[1768674567126,1.01248271,3321.3,3320.2,0.00347287]
[1768674567328,0.28341113,3321.4,3320.2,0.00347287]
[1768674567528,1.01248456,3321.3,3320.2,0.00347287]
[1768674567726,0.28341113,3321.4,3320.2,0.00347287]
[1768674568036,1.01249053,3321.3,3320.2,0.00347287]
[1768674568339,0.28341113,3321.4,3320.2,0.00347287]
[1768674568537,1.01249056,3321.3,3320.2,0.00347287]
[1768674568737,0.28341113,3321.4,3320.2,0.00347287]
[1768674568939,1.01249048,3321.3,3320.2,0.00347287]
[1768674569142,0.28341113,3321.4,3320.2,0.00347287]
[1768674569446,1.01249059,3321.3,3320.2,0.00347287]
[1768674569646,0.28341113,3321.4,3320.2,0.00347287]
[1768674569851,1.0124912,3321.3,3320.2,0.00347287]
[1768674570149,0.28341113,3321.4,3320.2,0.00347287]
[1768674570354,1.01249208,3321.3,3320.2,0.00347287]
[1768674570647,0.28341113,3321.4,3320.2,0.00347287]
[1768674570834,1.01249215,3321.3,3320.2,0.00347287]
[1768674571036,0.28341113,3321.4,3320.2,0.00347287]
[1768674571244,1.01249429,3321.3,3320.2,0.00347287]
[1768674571453,0.28341113,3321.4,3320.2,0.00347287]
[1768674571743,1.01249475,3321.3,3320.2,0.00347287]
[1768674571944,0.28341113,3321.4,3320.2,0.00347287]
[1768674572144,1.01249484,3321.3,3320.2,0.00347287]
[1768674572345,0.28341113,3321.4,3320.2,0.00347287]
[1768674572549,1.01249474,3321.3,3320.2,0.00347287]
[1768674572851,0.28341113,3321.4,3320.2,0.00347287]
[1768674573038,1.01249289,3321.3,3320.2,0.00347287]
[1768674573239,0.28341113,3321.4,3320.2,0.00347287]
[1768674573539,1.0124808,3321.3,3320.2,0.00347287]
[1768674573738,0.28341113,3321.4,3320.2,0.00347287]
[1768674573950,1.01247932,3321.3,3320.2,0.00347287]
[1768674574247,0.28341113,3321.4,3320.2,0.00347287]
[1768674574436,1.01247393,3321.3,3320.2,0.00347287]
[1768674574632,0.28341113,3321.4,3320.2,0.00347287]
[1768674574835,1.012474,3321.3,3320.2,0.00347287]
[1768674575041,0.28341113,3321.4,3320.2,0.00347287]
[1768674575251,1.01246009,3321.3,3320.2,0.00347287]
[1768674575442,0.28341113,3321.4,3320.2,0.00347287]
[1768674590157,0.28341113,3321.4,3320.2,0.97159364]
[1768674591348,0.30458422,3321.8,3320.2,0.97159364]
[1768674591550,1.01274623,3321.7,3320.2,0.97159364]
[1768674591750,1.01274623,3321.6,3320.2,0.97159364]